Cogmind - Beta 13 @@@ ROGUE MODE // 2024.07.07 @ 23:37:21 Player: Duduxx Result: Destroyed by G-47 Trooper with Particle Gun Performance ------------- Evolutions (0) 0 Regions Visited (1) 200 Robots Destroyed (14) 70 Value Destroyed (348) 348 Prototype IDs (1) 20 Alien Tech Used (0) 0 Bonus (0) 0 TOTAL SCORE: 638 Bonus ------- None Cogmind --------- Core Integrity 0/250 Matter 290/300 Energy 232/250 System Corruption 3% Temperature Cool (45) Movement Treading (240) Ox1 Location -10/Materials Parts ------- > --- POWER (1) -------- Ion Engine > --- PROPULSION (2) --- Light Treads Light Treads > --- UTILITY (2) ------ High-capacity Storage Unit > --- WEAPON (2) ------- Small Laser Light EM Pulse Cannon > --- INVENTORY (20) --- High-capacity Matter Pod (50) Light EM Pulse Cannon Mining Claw Peak State ------------ > --- POWER ------------ Cooled Ion Engine > --- PROPULSION ------- Wheel Compact Wheel > --- UTILITY ---------- High-capacity Storage Unit Propulsion Shielding > --- WEAPON ----------- Light EM Pulse Cannon Assault Rifle > --- INVENTORY -------- Ion Engine Light Treads Light Treads Light EM Pulse Cannon Light EM Pulse Cannon Mining Claw [Rating: 10] Favorites ----------- Power Ion Engine Engine Ion Engine Propulsion Compact Wheel Treads Light Treads Wheel Compact Wheel Utility High-capacity Storage Unit Storage High-capacity Storage Unit Protection Propulsion Shielding Weapon Light Assault Rifle Energy Gun EM Pulse Gun Energy Cannon Light EM Pulse Cannon Ballistic Gun Light Assault Rifle Build | -11 -10 ------- Run | Yrd Mat Slots Evolved . | . . Power . | . . Propulsion . | . . Utility . | . . Weapon . | . . Parts Attached 20 | 6 14 Power 4 | 1 3 Engine 4 | 1 3 Core . | . . Reactor . | . . Propulsion 7 | 2 5 Treads 3 | . 3 Leg . | . . Wheel 4 | 2 2 Hover . | . . Flight . | . . Utility 3 | 1 2 Device . | . . Storage 2 | 1 1 Processor . | . . Hackware . | . . Protection 1 | . 1 Artifact . | . . Weapon 6 | 2 4 Energy Gun 2 | 1 1 Energy Cannon 2 | . 2 Ballistic Gun 2 | 1 1 Ballistic Cannon . | . . Launcher . | . . Special Weapon . | . . Impact Weapon . | . . Slashing Weapon . | . . Piercing Weapon . | . . Special Melee Weapon . | . . Unidentified Prototypes 1 | . 1 Parts Lost 6 | . 6 Power 1 | . 1 Propulsion 1 | . 1 Utility 1 | . 1 Weapon 3 | . 3 Highest Loss Streak 4 | . 4 To Critical Strikes . | . . Average Slot Usage (%) 93 | . 93 Engine 13 | . 13 Treads 4 | . 4 Wheel 24 | . 24 Storage 14 | . 14 Protection 10 | . 10 Energy Gun 7 | . 7 Energy Cannon 6 | . 6 Ballistic Gun 12 | . 12 Naked Turns . | . . Heaviest Build 52 | 13 52 Greatest Support 40 | 26 40 Greatest Overweight (x) 1 | . 1 Average Overweight (x) . | . . Largest Inventory Capacity 20 | 8 20 Average Capacity 17 | 7 18 Most Carried 7 | 4 7 Average Carried 4 | 2 4 Final Capacity 20 | 8 20 Final Carried 4 | 4 3 Class Distribution -------------------- 100% | Mutant Dominant Class ---------------- Mutant | -10/Materials Resources | -11 -10 ----------- Run | Yrd Mat Matter Collected 477 | 244 233 Remotely . | . . Salvage Created 430 | . 430 Parts 23 | . 23 Haulers Intercepted . | . . Recyclers Shooed 1 | . 1 Parts Field Recycled . | . . Retrieved Matter . | . . Parts Self-Destructed . | . . Prevented . | . . Kills | -11 -10 ------- Run | Yrd Mat Combat Hostiles Destroyed 10 | . 10 Guns 6 | . 6 Cannons 3 | . 3 AOE 1 | . 1 Classes Destroyed 5 | . 5 Worker 1 | . 1 Tunneler 1 | . 1 Watcher 2 | . 2 Swarmer 3 | . 3 Grunt 7 | . 7 Best Kill Streak 3 | . 3 Combat Bots Only 3 | . 3 Max Kills in Single Turn 2 | . 2 Gunslinging . | . . Exploded 1 | . 1 Melee . | . . Uniques/NPCs Destroyed . | . . Combat | -11 -10 -------- Run | Yrd Mat Hostile Shots Fired 80 | . 80 Missed 23 | . 23 Damage Taken 910 | . 910 Core 258 | . 258 Absorbed by Shields . | . . Redirected to Shielding 47 | . 47 Core Remaining (%) 100 | 100 . Volleys Fired 39 | . 39 Largest 2 | . 2 Hottest 96 | . 96 Shots Fired 70 | . 70 Gun 52 | . 52 Cannon 18 | . 18 Launcher . | . . Special . | . . Kinetic 31 | . 31 Thermal 1 | . 1 Explosive . | . . Electromagnetic 38 | . 38 Robot Hit Streak 8 | . 8 Robot Miss Streak 3 | . 3 Penetration Max . | . . Secondary Targets 1 | . 1 Max Gunslinging Chain 1 | . 1 Shots Hit Robots 44 | . 44 Core Hits 21 | . 21 Critical Kills . | . . Critical Parts Destroyed . | . . Critical Strikes 1 | . 1 Corrupt 1 | . 1 Melee Attacks . | . . Impact . | . . Slashing . | . . Piercing . | . . Sneak Attacks . | . . Combat Hostiles . | . . Follow-up Attacks . | . . Damage Inflicted 1001 | . 1001 Guns 371 | . 371 Cannons 272 | . 272 Explosions 283 | . 283 Melee . | . . Ramming 75 | . 75 Kinetic 182 | . 182 Thermal 295 | . 295 Explosive . | . . Electromagnetic 449 | . 449 Impact . | . . Slashing . | . . Piercing . | . . Highest Corruption 3 | . 3 Average Corruption 3 | . 3 Corruption Purged . | . . Corruption Blocked . | . . Effects 5 | . 5 Message Errors 1 | . 1 Matter Fused 2 | . 2 Data Loss (minor) 1 | . 1 Misfires 1 | . 1 Overload Shots . | . . Overflow Damage 110 | . 110 Projectiles . | . . Explosions 98 | . 98 Melee 12 | . 12 Knockbacks 1 | . 1 Impact 1 | . 1 Kinetic . | . . Secondary . | . . Self-Inflicted Damage 322 | . 322 Shots 4 | . 4 Rammed 4 | . 4 Targets Rammed 4 | . 4 Kicked . | . . Crushed . | . . Highest Temperature 291 | . 291 Average Temperature 43 | . 43 Received Heat Transfer 228 | . 228 Siege Activations . | . . Robots Corrupted . | . . Combat Hostiles . | . . Parts Fried 1 | . 1 Impact Corruptions 1 | . 1 Robots Melted . | . . Combat Hostiles . | . . Parts Melted . | . . Heat Transferred 325 | . 325 Parts Sabotaged . | . . Parts Stolen . | . . Parts Stripped . | . . Power Chain Reactions 2 | . 2 Alert | -11 -10 ------- Run | Yrd Mat Peak Influence 229 | . 229 Initial . | . . Average 100 | . 110 Maximum Alert Level 1 | . 1 Low Security (%) 92 | 100 92 Level 1 7 | . 7 Level 2 . | . . Level 3 . | . . Level 4 . | . . Level 5 . | . . High Security . | . . Max Security . | . . Squads Dispatched 3 | . 3 Investigation 2 | . 2 Extermination . | . . Reinforcement 1 | . 1 Assault . | . . Garrison . | . . Intercept . | . . Searches Triggered . | . . Construction Impeded . | . . Haulers Reinforced . | . . Active Scanning Responses . | . . Cargo Convoy Interrupts . | . . Stealth | -11 -10 --------- Run | Yrd Mat Distress Signals 1 | . 1 Communications Jammed . | . . Distress Signals . | . . Times Spotted 18 | . 18 Peak Tracking Total 4 | . 4 Tactical Retreats . | . . Traps | -11 -10 ------- Run | Yrd Mat Traps Triggered . | . . Indirectly . | . . Trap Hack Attempts . | . . Triggered . | . . Disarmed . | . . Reprogrammed . | . . Reused . | . . Traps Extracted . | . . Installed . | . . Triggered . | . . Machines | -11 -10 ---------- Run | Yrd Mat Machines Disabled 4 | . 4 Max in Single Turn 3 | . 3 Machines Repaired . | . . Machines Dismantled . | . . Machines Sabotaged . | . . Overloaded Fab Kills . | . . Hacking | -11 -10 --------- Run | Yrd Mat Machines Accessed 4 | . 4 Terminals 3 | . 3 Fabricators . | . . Repair Stations . | . . Recycling Units 1 | . 1 Scanalyzers . | . . Garrison Access . | . . Total Hacks 11 | . 11 Successful 4 | . 4 Failed 7 | . 7 Catastrophic 4 | . 4 Database Lockouts . | . . Manual . | . . Terminals 8 | . 8 Fabricators . | . . Repair Stations . | . . Recycling Units 3 | . 3 Scanalyzers . | . . Garrison Access . | . . Terminal Hacks 1 | . 1 Scanalyzer Index 1 | . 1 Fabricator Hacks . | . . Repair Station Hacks . | . . Recycling Unit Hacks 3 | . 3 Report Inventory 2 | . 2 Retrieve Components 1 | . 1 Scanalyzer . | . . Garrison Access Hacks . | . . Unauthorized Hacks . | . . Terminals . | . . Fabricators . | . . Repair Stations . | . . Recycling Units . | . . Scanalyzers . | . . Garrison Access . | . . Data Cores Recovered . | . . Used . | . . Hacking Detections 4 | . 4 Full Trace Events 4 | . 4 Feedback Events . | . . Feedback Blocked . | . . Robot Schematics Acquired . | . . Robots Built . | . . Authchips . | . . Time . | . . Total Robot Build Rating . | . . Part Schematics Acquired . | . . Parts Built . | . . Authchips . | . . Time . | . . Total Part Build Rating . | . . Parts Repaired . | . . Time . | . . Parts Recycled . | . . Recycled Matter . | . . Retrieved Matter . | . . Retrieved Components 1 | . 1 Parts Scanalyzed . | . . Part Schematics Acquired . | . . Parts Damaged . | . . Bothacking | -11 -10 ------------ Run | Yrd Mat Used RIF Installer . | . . Robots Hacked . | . . Non-combat . | . . Combat . | . . Robot Hacks Applied . | . . Relay Couplers Released . | . . Fabnet Peak Effective % . | . . Robots Rewired . | . . Allies Hacked . | . . Hacks Repelled . | . . Allies | -11 -10 -------- Run | Yrd Mat Total Allies . | . . Largest Group . | . . Highest-Rated Group . | . . Highest-Rated Ally . | . . Total Orders . | . . Ally Attacks . | . . Total Damage . | . . Kills . | . . Allies Corrupted . | . . Allies Melted . | . . Intel | -11 -10 ------- Run | Yrd Mat Robot Analysis Total . | . . Derelict Logs Recovered . | . . Drone Launches . | . . Drone Recoveries . | . . Exploration | -11 -10 ------------- Run | Yrd Mat Turns Passed 617 | 54 563 Spaces Moved 411 | 49 362 Core 3 | 3 . Treads 24 | . 24 Legs . | . . Wheels 384 | 46 338 Hover . | . . Flight . | . . Fastest Speed 50 | 50 90 Average Speed 108 | 85 111 Slowest Speed 240 | 90 240 Overloaded Moves . | . . Propulsion Burnouts . | . . Robots Hopped . | . . Cave-ins Triggered . | . . Exploration Rate (%) 35 | 4 67 Regions Visited 1 Branch Regions . Pre-discovered Areas . | . . Known Exits Taken . | . . Unknown Exits Taken 1 | 1 . Scrap Searched . | . . Spaces Dug . | . . Terrain Destroyed 39 | . 39 Melee . | . . Projectile . | . . AOE 39 | . 39 Terrain Rammed . | . . Walls Destroyed . | . . Machines Disabled . | . . Actions | -11 -10 --------- Run | Yrd Mat Total 518 | 58 460 Wait 16 | . 16 Move 410 | 48 362 Hop . | . . Pick Up 12 | 4 8 Fast Attach 13 | 6 7 Attach 6 | . 6 Detach 6 | . 6 Swap 1 | . 1 Drop 11 | . 11 Fire 39 | . 39 Melee . | . . Ram 4 | . 4 Kick . | . . Crush . | . . Escape Stasis . | . . Rewire . | . . Trap . | . . Miscellaneous . | . . Route ------- -11/Scrapyard -10/Materials (discovered 2 exits: [*Mat] / [*Min]) History --------- Turn | Location | Event 19 | -11/Scrapyard | Discovered new exit (range 16) 55 | -11/Scrapyard | Entered Materials 154 | -10/Materials | Discovered new exit (range 7) 317 | -10/Materials | Build established: Mutant 327 | -10/Materials | Discovered new exit (range 15) 420 | -10/Materials | Core integrity fell below 50% 533 | -10/Materials | Core integrity fell below 20% 563 | -10/Materials | Lost 4 parts (1n1u2w) 618 | -10/Materials | Destroyed by G-47 Trooper with Particle Gun Last Messages --------------- 00570_ U-05 Engineer lays Concrete. 00571_ U-05 Engineer builds a Wall. 00571_ G-34 Mercenary destroyed. 00575_ U-05 Engineer lays Concrete. 00580_ Acquired 43 matter. 00581_ U-05 Engineer lays Concrete. 00595_ Door malfunctions. 00595_ U-05 Engineer lays Concrete. 00598_ U-05 Engineer builds a Wall. 00601_ G-34 Mercenary destroyed. 00601_ U-05 Engineer lays Concrete. 00602_ U-05 Engineer builds a Wall. 00603_ Acquired 50 matter. 00603_ U-05 Engineer builds a Wall. 00607_ Acquired Sml. Laser. 00611_ U-05 Engineer lays Concrete. 00613_ U-05 Engineer builds a Wall. 00614_ Acquired Corrupted Ion Engine. 00617_ U-05 Engineer lays Concrete. 00618_ Dropped Corrupted Ion Engine. Map ----- +----------------------------------------------------+ | % + """???" + / ""#????????????? | | =%% #??????"" ##### # #????????????? | | ######%! #????? ??????# ######????????????? | | ????#==[### ##?????????????# #?????????????????? | | ######%=### #############??# #?????????????????? | | != # # #### #?????????????????? | | # # ! / #?????????????????? | | # # #### #?????????????????? | | """ """ # # #??# #?????????????????? | | """"""""" # # #??# #?????????????????? | | """"" + + #??# #?????????????????? | | # # #??# #?????????????????? | | ########### #############??# #?????????????????? | | ?????????# ""?????????????# #?????????????????? | | ?????????# "#???????????# #?????????? #?????? | | ?????????# !"#???????????# #????????? #?????? | | ?????????# < ""#???????????# #####+### +?????? | | ?????????# |"#???????????# ??????? | | ?????????# "#???????????# ????????? | | ?????????# """#?########??# ??????????? | | ?????????## ####?# #??# #????????????? | | ??????????# ###### "" ! #??# #????????????? | | ??????????+ ^ + "T #??# #????????????? | | ??????????# # "" #??# #????????????? | | ??????????#^^""" # #### #????????????? | | ??????????# ^""" # @; # #????????????? | | ??????????# """ ##+##;;;;;#""" ##???????????? | | ??? # """ a =g ; #???????????? | | ??? ! + #???????????? | | ??????????# / "?????????? | | ??????????# ####### # u# # "????????? | | ??????????#=%!#?????# # = # #??"????????? | | ########### *!#?????+ + # #####???????????? | | % #?????# # # #???????????????? | | #?????# #???????????????? | | #?????# " ;##???????????????? | | ########### #?????# " ;#????????????????? | | ??????????# #?????# # ! "##????????????????? | | ??????????# #?????# # ""#?????????????????? | | ??????????# #?????# # #?????????????????? | | ??????????# #?????# ########?????????????????? | | ??????????# #?????# #????????????????????????? | | ??????????# #?????# #????????????????????????? | | ??????????# #?????# #????????????????????????? | | ?????????? ?????# ?????????????????????????? | | ?????????? ????? ?????????????????????????? | | ?????????? T ?????? ?????????????????????????? | | ?????????? ?????????????????????????????????? | | ??????????? #?????????????????????????????????? | | ???????????#?###?????????????????????????????????? | +----------------------------------------------------+ Best States ------------- Heat Dissipation 25 Energy Generation 10 Energy Capacity 250 Matter Stores 300 Matter Capacity 300 Sight Range 16 Terrain Scan Density 10 Propulsion Shielding 33 Evasion (%) 44 Recoil Reduction 2 Item Schematics ----------------- None Robot Schematics ------------------ None Fabricated ------------ Nothing Alien Tech Used ----------------- None Achievements -------------- None Challenges ------------ None Game ------ Seed MasterPlatingMicroactuators Manual? 0 Play Time 00:07:03 Cumulative 27.6 hours Start 2024.07.07 @ 23:21:32 End 2024.07.07 @ 23:37:21 Sessions 3 Manual Loads 0 Difficulty Rogue Special Mode None Game No. 66 Rogue 66 Adventurer 0 Explorer 0 Win Type - Total 0 Types 0/0/0/0/0/0/0/0/0 Lore% 23 Gallery% 29 Achievement% 20 Wizard Run 0 Options --------- Layout 1 ASCII 0 Keyboard 1 Movement Arrows Keybinds 0 Fullscreen 1 Font 24/Smallcaps Map View 50x35 Zoom Use 0% Tactical HUD 1 Map Filters NONE Filters NONE Steam 1 RUN: 318cb827-0426-4b14-a81a-6b441d5d1e54